bitfinex/quotes_ETHUSD_20250611
["timestamp","ask_amount","ask_price","bid_price","bid_amount"]
[1749612918835,6.2160824,2790.1,2790.0,0.952]
[1749612920950,6.7660824,2790.1,2790.0,0.952]
[1749612921111,7.54264064,2790.1,2790.0,0.952]
[1749612922451,7.54264064,2790.1,2789.9,9.276]
[1749612922745,0.9562,2790.0,2789.9,9.276]
[1749612922922,0.9562,2790.0,2789.9,10.228]
[1749612923111,4.6162,2790.0,2789.9,10.228]
[1749612923317,5.83208406,2790.0,2789.9,10.228]
[1749612924651,2.17208406,2790.0,2789.9,10.228]
[1749612928058,8.38816646,2790.0,2789.9,10.228]
[1749612930793,8.93816646,2790.0,2789.9,9.276]
[1749612931069,8.93816646,2790.0,2789.9,10.228]
[1749612931236,8.97016646,2790.0,2789.9,10.229]
[1749612931629,0.55,2789.9,2789.6,9.277]
[1749612931819,13.64804886,2790.0,2788.4,0.044]
[1749612931820,6.7660824,2789.7,2788.4,0.044]
[1749612932020,0.55,2789.5,2788.5,0.952]
[1749612932270,0.55,2789.1,2788.5,0.952]
[1749612932436,0.55,2788.9,2788.5,0.952]
[1749612933233,4.21,2788.9,2788.5,0.952]
[1749612934251,4.21,2788.9,2788.4,0.36193441]
[1749612934252,0.9882,2788.7,2788.6,0.952]
[1749612935127,0.9882,2788.7,2788.6,10.23]
[1749612938273,6.2160824,2788.8,2788.6,10.23]
[1749612938427,4.21,2788.9,2788.6,10.23]
[1749612938940,4.21,2788.9,2788.0,4.55867682]
[1749612938941,4.21,2788.9,2788.7,0.952]
[1749612939248,4.21,2788.9,2788.8,0.952]
[1749612941449,4.25,2788.9,2788.8,0.952]
[1749612942559,0.04,2788.9,2788.8,0.952]
[1749612945134,0.04,2788.9,2788.8,10.232]
[1749612946031,0.04,2788.9,2788.8,0.952]
[1749612950928,0.04,2788.9,2788.8,4.613]
[1749612951657,0.04,2789.9,2788.8,31.9527804]
[1749612951855,0.04,2789.9,2788.9,21.123698]
[1749612952168,6.2560824,2789.9,2788.9,21.123698]
[1749612955073,0.04,2789.9,2788.9,21.123698]
[1749612955287,0.04,2789.9,2789.0,15.4960824]
[1749612955582,0.04,2789.9,2789.2,6.2160824]
[1749612955795,0.04,2789.9,2789.3,3.66]
[1749612957371,0.04,2789.9,2789.0,9.28]
[1749612957372,6.2160824,2789.7,2789.0,9.28]
[1749612957564,6.2160824,2789.7,2789.1,4.612]
[1749612957952,6.2560824,2789.9,2789.1,4.612]
[1749612959292,0.04,2789.9,2789.1,4.612]
[1749612959460,6.2560824,2789.9,2789.1,4.612]
[1749612962711,0.04,2789.9,2789.4,6.2160824]
[1749612962987,0.04,2789.9,2789.6,6.2160824]
[1749612963493,0.04,2789.9,2789.5,3.66]
[1749612964148,0.04,2789.9,2789.4,6.2160824]
[1749612964354,0.04,2789.9,2789.5,4.611]
[1749612965690,1.0132,2790.9,2789.8,6.2160824]
[1749612965989,1.0132,2790.9,2789.9,3.659]
[1749612966285,0.04,2790.9,2789.9,3.659]
[1749612966492,6.2560824,2790.9,2789.9,3.659]
[1749612966702,6.2560824,2790.9,2789.5,0.952]
[1749612966703,6.2160824,2790.3,2789.5,13.255]
[1749612966870,6.2160824,2790.3,2790.0,0.952]
[1749612967066,6.2160824,2790.3,2790.1,0.952]
[1749612967402,7.1659824,2790.1,2789.4,3.659]
[1749612967562,6.2160824,2789.8,2789.5,0.951]
[1749612968081,6.2160824,2789.6,2789.3,0.35244181]
[1749612968269,6.2160824,2789.6,2789.4,0.951]
[1749612969108,6.2160824,2789.6,2789.5,0.951]
[1749612971303,6.2160824,2789.6,2789.0,9.28]
[1749612971502,6.2160824,2789.6,2788.1,0.04]
[1749612971503,0.55,2789.1,2788.9,9.277]
[1749612971663,1.4938,2789.1,2789.0,0.951]
[1749612971865,1.4938,2789.1,2788.9,9.277]
[1749612971866,0.9438,2789.1,2788.9,9.277]
[1749612972098,0.9438,2789.5,2789.0,0.951]
[1749612972801,0.9438,2789.5,2788.9,9.277]
[1749612972802,0.9438,2789.5,2789.1,0.951]
[1749612973211,0.9438,2789.5,2788.4,6.2160824]
[1749612973371,0.9438,2789.5,2788.5,0.952]
[1749612973572,0.9438,2789.5,2788.6,0.952]
[1749612974395,0.9438,2789.5,2787.6,0.27384665]
[1749612974396,6.2160824,2789.0,2788.2,0.35482784]
[1749612974614,6.2160824,2789.3,2788.3,4.611]
[1749612974921,7.87587064,2789.5,2788.5,10.0]
[1749612975084,7.87587064,2789.5,2788.6,9.277]
[1749612975487,1.65978824,2789.5,2788.7,0.951]
[1749612975731,7.1598824,2789.5,2788.7,0.951]
[1749612975878,0.04,2789.9,2788.9,6.2160824]
[1749612976226,0.04,2789.9,2789.2,21.123698]
[1749612976395,0.04,2789.9,2789.0,21.123698]
[1749612976574,0.04,2789.9,2789.1,3.659]
[1749612976915,0.04,2789.9,2789.2,21.123698]
[1749612979014,0.04,2789.9,2789.6,6.2160824]
[1749612979199,0.04,2789.9,2789.7,4.61]
[1749612982228,0.04,2789.9,2789.8,21.123698]
[1749612983023,0.04,2790.9,2789.9,21.123698]
[1749612983224,0.66560824,2790.9,2789.9,21.123698]
[1749612984032,0.04,2790.9,2790.0,21.123698]
[1749612984328,0.04,2790.9,2790.1,3.669]
[1749612985323,0.04,2790.9,2790.3,21.123698]
[1749612986055,0.04,2790.9,2790.4,31.123698]
[1749612986203,0.04,2790.9,2790.6,21.123698]
[1749612986926,0.04,2790.9,2790.6,27.3397804]
[1749612987137,0.04,2790.9,2790.7,21.123698]
[1749612987328,7.1932824,2791.8,2790.3,3.58382236]
[1749612987329,6.2160824,2791.8,2790.9,10.0]
[1749612987488,0.62560824,2791.7,2790.9,21.123698]
[1749612987824,6.2160824,2791.8,2790.9,21.123698]
[1749612988714,0.8967,2791.7,2790.9,21.123698]
[1749612989826,0.8967,2791.7,2790.4,21.123698]
[1749612990025,0.8967,2791.7,2790.6,31.123698]
[1749612990190,0.8967,2791.7,2790.6,21.123698]
[1749612991232,10.37054793,2791.7,2790.3,21.123698]
[1749612991402,9.47384793,2791.4,2790.4,4.626]
[1749612991600,0.9082,2791.5,2790.4,4.626]
[1749612991901,0.9082,2791.5,2790.2,9.275]
[1749612991902,0.9082,2790.9,2790.5,0.951]
[1749612998402,0.9082,2790.9,2790.5,4.626]
[1749612999644,9.47384793,2790.7,2790.2,9.275]
[1749612999847,9.47384793,2790.7,2790.6,0.951]
[1749613000047,0.55,2791.7,2790.6,0.951]
[1749613000222,0.9882,2790.9,2790.6,0.951]
[1749613002250,0.9797,2790.5,2790.2,9.275]
[1749613002409,9.47384793,2790.4,2790.3,0.951]
[1749613003116,9.47384793,2790.4,2790.2,9.275]
[1749613003117,10.42123272,2790.4,2790.2,9.275]
[1749613003308,0.55,2790.3,2790.2,9.275]
[1749613003512,0.55,2790.3,2789.1,0.04]
[1749613003713,0.9797,2789.5,2789.2,0.951]
[1749613005145,0.9797,2789.5,2789.3,9.274]
[1749613013365,0.9243,2790.2,2789.4,3.676]
[1749613015227,0.9243,2790.2,2789.5,21.123698]
[1749613016535,0.9243,2790.2,2789.4,3.676]
[1749613016868,0.9243,2790.2,2789.5,10.0]
[1749613017167,0.9243,2790.2,2789.5,11.975587]
[1749613017356,9.47384793,2790.6,2789.5,11.975587]
[1749613017555,0.9363,2790.8,2789.7,11.975587]
[1749613017756,0.9363,2790.8,2789.5,10.0]
[1749613017757,0.9363,2790.8,2789.9,11.975587]
[1749613017957,0.9363,2790.8,2790.1,21.975587]
[1749613018159,0.9363,2790.8,2790.1,11.975587]
[1749613019168,0.9246,2791.1,2790.1,11.975587]
[1749613019349,0.9246,2791.3,2790.2,11.975587]
[1749613019548,0.9246,2791.3,2790.0,9.642]
[1749613019549,0.9246,2791.3,2790.4,21.975587]
[1749613019746,0.9246,2791.3,2790.4,11.975587]
[1749613020365,9.47384793,2791.7,2790.5,15.55916227]
[1749613020366,0.9598,2791.6,2790.5,15.55916227]
[1749613020572,0.9598,2791.6,2790.7,10.0]
[1749613020782,0.9598,2791.6,2790.8,0.963]
[1749613021079,0.9598,2791.6,2790.9,3.679]
[1749613025515,0.04,2791.9,2791.0,11.975587]
[1749613025516,1.0062,2791.9,2791.0,11.975587]
[1749613025720,1.0062,2791.9,2791.1,9.274]
[1749613026712,1.0042,2791.9,2791.1,9.274]
[1749613027310,0.038,2791.9,2791.2,11.975587]
[1749613027613,0.038,2791.9,2791.4,21.975587]
[1749613027764,0.038,2791.9,2791.4,11.975587]
[1749613028270,0.05,2792.4,2791.5,11.975587]
[1749613028470,0.05,2792.4,2791.3,13.14884793]
[1749613028471,0.05,2792.4,2791.7,11.975587]
[1749613028708,0.05,2792.4,2791.6,0.963]
[1749613028709,0.05,2792.4,2791.9,21.975587]
[1749613028888,0.05,2792.4,2791.9,11.975587]
[1749613029382,0.05,2792.4,2791.9,0.87685405]
[1749613029580,0.05,2792.4,2791.8,3.676]
[1749613029779,0.9763,2792.4,2791.5,11.975587]
[1749613029997,9.47384793,2792.2,2791.6,4.638]
[1749613030212,2.02131479,2792.4,2791.6,0.89626218]
[1749613030425,0.9763,2792.4,2791.7,4.639]
[1749613030582,9.47384793,2792.2,2791.3,10.0]
[1749613030782,0.9263,2792.1,2791.4,4.638]
[1749613030998,9.47384793,2791.9,2791.4,0.963]
[1749613031210,9.47384793,2791.6,2791.1,9.274]
[1749613031524,10.47623272,2791.6,2791.5,0.963]
[1749613034698,0.9371,2791.7,2791.5,0.963]
[1749613035099,0.9371,2791.7,2791.1,12.952]
[1749613035100,0.55,2791.6,2791.1,9.274]
[1749613035398,9.47384793,2791.3,2791.2,0.963]
[1749613035790,0.9371,2791.7,2791.2,0.963]
[1749613036185,0.944,2792.0,2791.2,0.963]
[1749613036384,2.04078479,2792.0,2791.2,0.963]
[1749613037173,9.47384793,2791.8,2791.2,0.963]
[1749613040299,0.944,2792.0,2791.2,0.963]
[1749613041003,9.47384793,2791.9,2791.1,9.274]
[1749613041202,9.47384793,2791.9,2791.2,4.639]
[1749613041390,9.47384793,2791.9,2791.1,9.274]
[1749613041588,1.04178479,2791.8,2791.2,4.64]
[1749613042404,9.47384793,2791.6,2791.3,0.963]
[1749613043279,0.9274,2791.7,2791.3,0.963]
[1749613043504,10.40174793,2791.9,2791.3,0.963]
[1749613044074,0.9279,2791.9,2791.3,0.963]
[1749613044470,0.9019,2792.1,2791.3,0.963]
[1749613044726,0.9519,2792.4,2791.4,11.975587]
[1749613045409,0.9519,2792.4,2791.4,8.889]
[1749613045595,0.9519,2792.4,2791.5,0.963]
[1749613046126,0.9208,2791.9,2791.6,0.963]
[1749613046303,1.03946479,2791.8,2791.7,0.963]
[1749613048315,0.9208,2792.1,2791.7,0.963]
[1749613049615,9.47384793,2792.0,2791.7,0.963]
[1749613051615,0.9208,2792.1,2791.7,0.963]
[1749613051829,10.39464793,2792.1,2791.7,0.963]
[1749613051981,1.09446479,2792.0,2791.7,0.963]
[1749613053620,9.47384793,2791.8,2791.7,0.963]
[1749613053823,9.47384793,2791.8,2790.5,0.35568567]
[1749613053987,9.47384793,2791.8,2791.2,3.68]
[1749613054518,1.09446479,2792.0,2791.2,3.68]
[1749613056913,0.95238479,2792.3,2791.9,4.644]
[1749613057690,0.05,2792.4,2791.9,4.644]
[1749613058024,0.05,2792.4,2792.1,10.0]
[1749613058722,0.05,2792.4,2792.0,6.965587]
[1749613059225,0.05,2792.4,2792.1,4.644]
[1749613063749,0.05,2792.4,2791.8,10.0]
[1749613063935,0.05,2792.4,2792.0,10.0]
[1749613064135,0.05,2792.4,2792.0,6.965587]
[1749613064334,0.05,2792.4,2792.2,10.0]
[1749613064537,0.05,2792.4,2792.0,6.965587]
[1749613064739,0.05,2792.4,2792.1,10.0]
[1749613064937,0.05,2792.4,2792.0,10.0]
[1749613065148,0.05,2792.4,2792.0,6.965587]
[1749613065350,0.05,2792.4,2792.2,10.0]
[1749613065519,0.05,2792.4,2791.8,16.965587]
[1749613065720,0.05,2792.4,2791.9,14.636]
[1749613065914,0.05,2792.4,2792.1,10.0]
[1749613066121,0.05,2792.4,2792.1,2.653]
[1749613066535,0.05,2792.4,2792.1,2.327]
[1749613067825,0.05,2792.4,2791.9,6.965587]
[1749613068140,0.05,2792.4,2792.1,16.929]
[1749613068326,0.05,2792.4,2792.2,10.0]
[1749613069125,0.05,2792.4,2792.3,10.0]
[1749613069363,0.05,2792.4,2792.1,16.965587]
[1749613069664,0.05,2792.4,2792.3,10.0]
[1749613069961,0.05,2792.4,2792.2,10.0]
[1749613070166,0.05,2792.4,2792.3,10.0]
[1749613070330,0.04,2792.9,2792.3,10.0]
[1749613070331,0.04,2792.9,2792.4,6.965587]
[1749613070527,0.04,2792.9,2792.6,10.0]
[1749613070733,0.04,2792.9,2792.7,13.675]
[1749613070931,0.04,2792.9,2792.8,4.637]
[1749613074366,0.04,2792.9,2792.8,11.602587]
[1749613075165,0.04,2792.9,2792.8,4.635]
[1749613075386,0.04,2792.9,2792.8,6.75]
[1749613078899,0.9529,2793.5,2792.8,6.75]
[1749613079058,0.9529,2793.5,2792.8,4.635]
[1749613079259,0.9529,2793.5,2792.9,6.965587]
[1749613079570,0.9529,2793.5,2792.9,10.0]
[1749613079881,0.9529,2793.5,2793.0,10.0]
[1749613080083,0.9529,2793.5,2793.1,13.671]
[1749613080282,9.77384793,2793.6,2793.1,3.671]
[1749613083198,9.77384793,2793.6,2793.2,9.266]
[1749613083502,7.17123122,2793.3,2793.2,9.266]
[1749613083803,7.17123122,2793.3,2793.2,10.227]
[1749613083971,7.17123122,2793.5,2793.2,10.227]
[1749613085817,0.3,2793.6,2793.2,10.227]
[1749613086134,6.49613122,2793.6,2793.2,10.227]
[1749613086628,7.17233122,2793.4,2793.3,4.628]
[1749613086797,7.17233122,2793.4,2793.3,0.961]
[1749613088289,0.9762,2793.4,2793.3,0.961]
[1749613088497,0.3,2793.6,2793.3,0.961]
[1749613088696,0.3,2793.6,2793.4,0.961]
[1749613089995,6.49613122,2793.6,2793.4,0.961]
[1749613092460,0.3,2793.6,2793.4,0.961]
[1749613095173,0.3,2793.6,2793.5,10.225]
[1749613096877,0.3,2793.6,2793.5,10.959461]
[1749613097040,6.49613122,2793.6,2793.5,10.225]
[1749613097251,8.13124434,2793.6,2793.5,10.218]
[1749613099232,1.93511312,2793.6,2793.5,10.218]
[1749613099439,1.2855,2793.6,2793.5,10.218]
[1749613099857,10.74827076,2793.6,2793.5,9.264]
[1749613100132,10.74827076,2793.6,2793.5,10.218]
[1749613100331,11.29827076,2793.6,2793.5,10.218]
[1749613102366,0.9199,2793.4,2793.1,0.36121794]
[1749613102534,0.9199,2793.4,2793.2,10.218]
[1749613102732,9.46277076,2793.3,2793.2,9.264]
[1749613103077,10.50103784,2793.3,2793.2,10.218]
[1749613103378,11.41883784,2793.3,2793.2,10.218]
[1749613103932,0.9178,2793.3,2793.2,10.218]
[1749613104171,0.9178,2793.5,2793.2,10.218]
[1749613105977,1.4457,2793.3,2793.2,9.264]
[1749613106156,1.4457,2793.3,2793.2,10.218]
[1749613106471,2.90334708,2793.3,2793.2,10.218]
[1749613113650,6.57434708,2793.3,2793.2,10.218]
[1749613114249,2.90334708,2793.3,2793.2,10.218]
[1749613114570,6.57334708,2793.3,2793.2,10.218]
[1749613116292,0.9819,2793.1,2791.7,0.35428014]
[1749613116580,9.46277076,2792.4,2791.8,4.625]
[1749613116783,9.46277076,2792.4,2791.1,0.35886962]
[1749613116784,9.46277076,2792.4,2791.9,0.955]
[1749613116946,9.46277076,2792.4,2792.0,4.626]
[1749613117145,9.46277076,2792.4,2792.1,0.955]
[1749613117386,9.46277076,2792.4,2792.2,0.955]
[1749613117553,1.04446708,2792.3,2791.2,6.965587]
[1749613117753,9.46277076,2791.8,2791.3,0.955]
[1749613121296,6.20377769,2791.5,2791.3,0.955]
[1749613124207,0.9216,2791.4,2791.1,0.04]
[1749613124403,0.55,2791.3,2791.2,0.955]
[1749613124703,1.06456,2791.3,2791.2,0.955]
[1749613124907,1.98616,2791.3,2791.2,0.955]
[1749613125061,1.98616,2791.3,2791.2,10.224]
[1749613125631,8.18993769,2791.3,2791.2,10.224]
[1749613125967,8.18993769,2791.3,2791.1,0.04]
[1749613126168,7.26833769,2791.3,2791.2,0.955]
[1749613126503,10.94433769,2791.3,2791.2,0.955]
[1749613126719,11.90723769,2791.3,2791.2,0.955]
[1749613127379,15.18554054,2791.3,2791.2,0.955]
[1749613128974,9.48208054,2790.3,2790.1,0.04]
[1749613129184,9.48208054,2790.3,2790.2,0.962]
[1749613130320,9.48208054,2790.8,2790.2,0.962]
[1749613130485,0.9415,2791.2,2790.2,0.962]
[1749613130674,10.42358054,2791.4,2790.2,0.962]
[1749613130869,3.68,2791.3,2789.6,10.22051142]
[1749613131115,3.68,2791.3,2789.8,16.965587]
[1749613131407,3.68,2791.3,2790.0,16.965587]
[1749613131614,9.48208054,2791.4,2790.1,10.0]
[1749613131780,9.48208054,2791.4,2790.2,10.0]
[1749613132118,9.48208054,2791.4,2790.4,6.965587]
[1749613132284,9.48208054,2791.4,2790.5,10.0]
[1749613132486,0.9415,2791.6,2790.4,6.965587]
[1749613132809,9.48208054,2791.7,2790.6,10.0]
[1749613133112,9.48208054,2791.7,2790.5,10.0]
[1749613133275,9.48208054,2791.7,2790.5,6.305]
[1749613135219,9.48208054,2791.7,2790.7,16.965587]
[1749613135423,9.48208054,2791.7,2790.7,6.965587]
[1749613136299,0.9815,2791.9,2790.7,6.965587]
[1749613136618,9.48208054,2791.8,2790.6,10.234]
[1749613137619,9.48208054,2791.5,2790.7,2.107]
[1749613137932,10.46518054,2791.5,2790.6,9.272]
[1749613138140,10.46518054,2791.5,2790.7,4.641]
[1749613141012,10.46518054,2791.5,2790.7,0.962]
[1749613141207,9.48208054,2791.2,2790.7,4.638]
[1749613141399,9.48208054,2791.2,2790.6,9.272]
[1749613141600,9.48208054,2790.9,2790.7,0.962]
[1749613141808,9.48208054,2790.9,2790.8,0.962]
[1749613142010,11.98095859,2790.9,2790.8,0.962]
[1749613142220,1.4597,2790.7,2790.6,9.272]
[1749613142416,1.4597,2790.7,2790.6,10.234]
[1749613144910,1.4597,2790.7,2790.6,9.272]
[1749613145111,1.4597,2790.7,2790.6,10.234]
[1749613145311,2.65779586,2790.7,2790.6,10.234]
[1749613145946,10.94178054,2790.7,2790.6,9.272]
[1749613146127,10.94178054,2790.7,2790.6,10.234]
[1749613148811,9.48208054,2791.1,2790.6,10.234]
[1749613149756,0.55,2790.7,2790.6,9.272]
[1749613149915,0.55,2790.7,2790.6,10.235]
[1749613150314,1.92180805,2790.7,2790.6,10.235]
[1749613152526,9.48208054,2790.8,2790.6,10.235]
[1749613152852,1.4362,2790.7,2790.6,9.272]
[1749613153055,1.4362,2790.7,2790.6,10.235]
[1749613156410,0.55,2790.7,2790.6,10.235]
[1749613157947,9.48208054,2790.8,2790.6,10.235]
[1749613158552,0.55,2791.1,2790.6,10.235]
[1749613158880,9.48208054,2790.9,2790.6,10.235]
[1749613159034,10.57599859,2791.1,2790.6,10.235]
[1749613159233,1.09391805,2791.1,2790.6,10.235]
[1749613159538,9.48208054,2790.9,2790.6,10.235]
[1749613161553,1.4357,2790.8,2790.6,10.235]
[1749613161885,5.1187,2790.8,2790.7,0.964]
[1749613163594,4.233,2790.8,2789.6,0.35177605]
[1749613163747,9.48208054,2789.8,2789.6,3.686]
[1749613165195,9.48208054,2789.8,2789.7,10.239]
[1749613165920,9.48208054,2790.1,2789.7,10.239]
[1749613166265,10.03208054,2789.8,2789.7,9.275]
[1749613166600,13.72408054,2789.8,2789.7,10.239]
[1749613166800,14.65008054,2789.8,2789.7,10.239]
[1749613170297,14.64808054,2789.8,2789.7,10.239]
[1749613170495,16.11288859,2789.8,2789.7,10.239]
[1749613171410,16.11188859,2789.8,2789.7,10.239]
[1749613174127,6.62980805,2789.8,2789.7,0.964]
[1749613174287,5.165,2789.8,2789.7,0.964]
[1749613175183,1.476,2789.8,2789.7,10.242]
[1749613175388,14.64408054,2789.8,2789.7,10.242]
[1749613180327,10.95808054,2789.8,2789.7,10.242]
[1749613180494,14.64008054,2789.8,2789.7,10.242]
[1749613181304,16.10808859,2789.8,2789.7,10.242]
[1749613191002,15.18208859,2789.8,2789.7,10.242]
[1749613191203,11.91408038,2789.8,2789.7,10.242]
[1749613191729,10.43707233,2789.8,2789.7,10.242]
[1749613192117,6.21407233,2789.8,2789.7,10.242]
[1749613192326,9.88707233,2789.8,2789.7,10.242]
[1749613193140,9.88707233,2789.8,2789.7,0.96]
[1749613193645,6.21407233,2789.8,2789.7,0.96]
[1749613195236,6.21407233,2789.8,2789.7,10.238]
[1749613201831,0.04,2789.9,2789.7,13.906]
[1749613208450,6.25407233,2789.9,2789.7,10.238]
[1749613208612,6.25407233,2789.9,2789.8,3.665]
[1749613211760,0.04,2789.9,2789.8,3.665]
[1749613214155,6.25407233,2789.9,2789.7,10.238]
[1749613214355,6.25407233,2789.9,2789.8,3.665]
[1749613214670,6.25407233,2789.9,2789.8,4.625]
[1749613214870,6.87947956,2789.9,2789.8,0.96]
[1749613215467,6.25407233,2789.9,2789.8,0.96]
[1749613222084,6.25407233,2789.9,2789.7,9.278]
[1749613222288,6.80407233,2789.9,2789.8,0.954]
[1749613222996,0.04,2789.9,2789.8,0.954]
[1749613223167,6.25407233,2789.9,2789.8,0.954]
[1749613226417,0.9243,2791.2,2790.0,10.0]
[1749613226713,6.25407233,2790.9,2790.2,16.965587]
[1749613226862,6.25407233,2790.9,2790.4,10.0]
[1749613227062,6.25407233,2790.9,2790.5,3.667]
[1749613227376,0.04,2790.9,2790.6,0.954]
[1749613227577,0.04,2790.9,2790.7,3.667]
[1749613234279,0.04,2790.9,2790.8,4.618]
[1749613238711,0.04,2790.9,2790.8,13.892]
[1749613242425,0.04,2790.9,2790.8,20.857587]
[1749613243129,0.04,2790.9,2790.8,16.077]
[1749613243322,0.04,2790.9,2790.8,0.954]
[1749613244520,0.04,2790.9,2790.8,4.617]
[1749613245191,0.04,2790.9,2790.8,13.89]
[1749613249164,0.9099,2791.7,2790.8,43.89]
[1749613249342,7.19035881,2791.9,2790.9,30.0]
[1749613250128,6.20415881,2791.7,2790.9,30.0]
[1749613251091,6.20415881,2791.7,2791.0,3.663]
[1749613251893,6.20415881,2791.5,2791.0,3.663]
[1749613252893,6.20415881,2791.5,2791.0,4.0171083]
[1749613254409,6.20415881,2791.3,2791.0,0.3541083]
[1749613254706,0.9862,2791.9,2790.8,9.273]
[1749613254707,6.20415881,2791.1,2790.8,9.273]
[1749613254880,0.62041588,2791.1,2791.0,3.662]
[1749613255085,0.9484,2791.5,2791.0,4.01338934]
[1749613255999,6.20415881,2791.1,2791.0,4.01338934]
[1749613258293,6.20415881,2791.1,2791.0,0.35138934]
[1749613258497,6.20415881,2791.1,2790.9,4.616]
[1749613260170,0.9484,2791.5,2790.9,4.616]
[1749613260481,6.20415881,2791.2,2791.0,0.954]
[1749613260661,6.20415881,2791.2,2791.1,0.954]
[1749613265117,6.20415881,2791.2,2791.1,10.226]
[1749613270751,6.82457469,2791.2,2791.1,10.226]
[1749613272632,8.29077469,2791.2,2791.1,9.272]
[1749613272940,8.29077469,2791.2,2791.1,10.226]
[1749613274122,7.74077469,2791.2,2791.1,10.226]
[1749613274553,7.12035881,2791.2,2791.1,10.226]
[1749613274754,6.20415881,2791.2,2791.1,10.226]
[1749613279942,7.15895881,2791.2,2791.1,10.226]
[1749613280260,7.70895881,2791.2,2791.1,10.226]
[1749613280464,11.37095881,2791.2,2791.1,10.225]
[1749613280669,12.50805469,2791.2,2791.1,10.225]
[1749613281162,12.50805469,2791.2,2791.1,9.272]
[1749613281462,12.50805469,2791.2,2791.1,10.225]
[1749613281670,0.55,2791.0,2790.5,3.662]
[1749613281863,0.9534,2790.5,2790.4,3.662]
[1749613282077,0.9534,2790.5,2790.3,3.662]
[1749613282364,6.20415881,2790.4,2790.3,3.662]
[1749613283171,6.20415881,2790.4,2789.2,10.3560454]
[1749613283345,9.48382855,2790.4,2789.3,3.662]
[1749613283538,9.48382855,2790.4,2789.4,3.662]
[1749613283748,9.48382855,2790.4,2789.5,3.662]
[1749613283970,9.48382855,2790.4,2789.1,0.38353497]
[1749613284198,9.48382855,2790.1,2789.2,21.416]
[1749613284340,9.48382855,2790.1,2789.3,9.297]
[1749613285246,9.48382855,2790.1,2789.4,10.226]
[1749613285451,9.48382855,2790.4,2789.5,3.662]
[1749613286750,10.37732855,2791.0,2789.8,10.0]
[1749613286981,10.37732855,2791.0,2789.9,3.662]
[1749613287773,10.37732855,2791.0,2790.0,30.0]
[1749613288289,9.48382855,2791.0,2790.0,30.0]
[1749613288989,9.48382855,2791.3,2790.0,30.0]
[1749613289154,10.88776141,2791.3,2790.0,30.0]
[1749613290588,9.48382855,2791.3,2790.0,30.0]
[1749613294992,9.48382855,2791.3,2790.1,4.615]
[1749613295194,9.48382855,2791.3,2790.2,30.0]
[1749613295393,0.3579,2792.5,2790.2,30.0]
[1749613295394,0.9582,2791.9,2790.2,30.0]
[1749613295723,0.9582,2791.9,2790.4,30.0]
[1749613296023,0.04,2791.9,2790.6,40.0]
[1749613296223,0.04,2791.9,2790.6,30.0]
[1749613296631,9.48382855,2791.5,2790.7,4.615]
[1749613296793,9.48382855,2791.5,2790.8,27.043]
[1749613297324,9.48382855,2791.5,2790.9,4.615]
[1749613297531,9.48382855,2791.5,2791.0,0.953]
[1749613298326,9.48382855,2791.5,2791.0,1.30222701]
[1749613298525,9.48382855,2791.5,2791.0,0.34922701]
[1749613298730,9.48382855,2791.5,2791.1,0.953]
[1749613299720,9.48382855,2791.6,2791.1,0.953]
[1749613300831,9.48382855,2791.6,2791.2,9.272]
[1749613301941,9.48382855,2791.3,2791.2,9.272]
[1749613302130,9.48382855,2791.3,2791.2,10.225]
[1749613303320,6.20531373,2791.3,2791.2,10.225]
[1749613304141,1.04024286,2791.6,2791.2,10.225]
[1749613304354,6.20531373,2791.3,2791.2,10.225]
[1749613305535,7.7266451,2791.3,2791.2,9.272]
[1749613305741,7.7266451,2791.3,2791.2,10.225]
[1749613307314,8.2766451,2791.3,2791.2,10.225]
[1749613307512,0.55,2791.2,2789.5,40.0]
[1749613307754,0.55,2791.2,2789.4,0.31493059]
[1749613307755,6.20531373,2790.1,2789.6,0.953]
[1749613307920,6.20531373,2790.1,2789.7,3.661]
[1749613308122,6.20531373,2790.1,2789.8,3.661]
[1749613308446,6.20531373,2789.9,2789.8,3.661]
[1749613308649,6.20531373,2789.9,2789.8,1.3162344]
[1749613308850,6.20531373,2789.9,2789.8,4.9772344]
[1749613309346,6.20531373,2789.9,2789.8,1.3162344]
[1749613311270,9.48720485,2789.9,2789.8,1.3162344]
[1749613311469,10.29944942,2789.9,2789.8,0.953]
[1749613311848,10.84944942,2789.9,2789.8,0.953]
[1749613312564,0.55,2789.8,2789.1,0.04]
[1749613312752,9.48720485,2789.6,2789.2,0.953]
[1749613312958,9.48720485,2789.6,2789.2,1.31338356]
[1749613315177,9.48720485,2789.6,2789.3,9.275]
[1749613315892,0.55,2789.8,2789.3,9.275]
[1749613316255,0.96676195,2789.8,2789.3,9.275]
[1749613316456,9.48720485,2789.5,2789.3,9.275]
[1749613316780,1.4785,2789.4,2789.3,9.275]
[1749613316983,1.4785,2789.4,2789.3,10.228]
[1749613321793,5.1685,2789.4,2789.3,9.275]